Cogmind - Beta 11.1 @@@ ROGUE MODE // 2022.10.15 @ 17:57:44 Player: Beepinex Result: Destroyed by Y-45 Defender with Beam Rifle Performance ------------- Evolutions (2) 1000 Regions Visited (5) 1000 Robots Destroyed (60) 300 Value Destroyed (1647) 1647 Prototype IDs (6) 120 Alien Tech Used (0) 0 Bonus (403) 403 TOTAL SCORE: 4470 Bonus ------- High Alert Combat Kills 33 Follower Combat Kills 70 Aligned with FarCom 300 Cogmind --------- Core Integrity 0/550 Matter 300/300 Energy 100/100 System Corruption 3% Temperature Cool (9) Movement Walking (90) Location -8/Materials Parts ------- > --- POWER (2) -------- (None) > --- PROPULSION (2) --- Potential Leg > --- UTILITY (4) ------ Improved Heat Sink Medium Storage Unit Improved Targeting Computer > --- WEAPON (3) ------- Advanced Beam Rifle > --- INVENTORY (10) --- Improved Deuterium Engine Cryofiber Web Improved Heat Sink Seismic Detector Improved Targeting Computer Improved Targeting Computer Improved Datajack Peak State ------------ > --- POWER ------------ Improved Deuterium Engine Improved Deuterium Engine > --- PROPULSION ------- Potential Leg Potential Leg > --- UTILITY ---------- Improved Heat Sink Small Storage Unit Improved Targeting Computer Improved Targeting Computer > --- WEAPON ----------- Heavy Particle Gun Advanced Beam Rifle Particle Cannon > --- INVENTORY -------- Improved Deuterium Engine Cryofiber Web Improved Heat Sink Medium Storage Unit Seismic Detector Improved Targeting Computer Improved Targeting Computer Advanced Beam Rifle [Rating: 48] Favorites ----------- Power Ion Engine Engine Ion Engine Propulsion Wheel Leg Potential Leg Wheel Wheel Utility Small Storage Unit Device Seismic Detector Storage Small Storage Unit Processor Improved Targeting Computer Weapon Particle Cannon Energy Gun Advanced Beam Rifle Energy Cannon Particle Cannon Ballistic Gun Assault Rifle Launcher Grenade Launcher Slashing Weapon Katana Piercing Weapon Makeshift Spear Build | -11 -10 -10 -10 -9 -8 ------- Run | Scr Mat Min Exi Min Mat Slots Evolved 4 | . . . . . 4 Power 1 | . . . . . 1 Propulsion . | . . . . . . Utility 2 | . . . . . 2 Weapon 1 | . . . . . 1 Parts Attached 45 | 12 7 1 2 . 23 Power 9 | 1 1 . . . 7 Engine 9 | 1 1 . . . 7 Core . | . . . . . . Reactor . | . . . . . . Propulsion 10 | 5 3 . 2 . . Treads . | . . . . . . Leg 2 | . . . 2 . . Wheel 8 | 5 3 . . . . Hover . | . . . . . . Flight . | . . . . . . Utility 8 | 2 1 . . . 5 Device 4 | 1 1 . . . 2 Storage 2 | 1 . . . . 1 Processor 2 | . . . . . 2 Hackware . | . . . . . . Protection . | . . . . . . Artifact . | . . . . . . Weapon 18 | 4 2 1 . . 11 Energy Gun 7 | . . . . . 7 Energy Cannon 2 | . 1 . . . 1 Ballistic Gun 5 | 4 1 . . . . Ballistic Cannon . | . . . . . . Launcher 2 | . . . . . 2 Special Weapon . | . . . . . . Impact Weapon . | . . . . . . Slashing Weapon 1 | . . . . . 1 Piercing Weapon 1 | . . 1 . . . Special Melee Weapon . | . . . . . . Unidentified Prototypes 4 | . . . 1 . 3 Parts Lost 9 | . . . . . 9 Power 3 | . . . . . 3 Propulsion 1 | . . . . . 1 Utility 1 | . . . . . 1 Weapon 4 | . . . . . 4 Highest Loss Streak 6 | . . . . . 6 To Critical Strikes . | . . . . . . Average Slot Usage (%) 97 | . 99 100 100 100 95 Engine 15 | . 14 14 14 14 17 Leg 9 | . . . 16 28 17 Wheel 14 | . 28 28 11 . . Device 11 | . 14 14 14 14 9 Storage 11 | . 14 14 14 14 9 Processor 7 | . . . . . 17 Energy Gun 7 | . . . . . 16 Energy Cannon 10 | . 13 14 14 14 5 Ballistic Gun 4 | . 14 1 . . . Piercing Weapon 3 | . . 12 14 14 . Naked Turns . | . . . . . . Heaviest Build 40 | 14 17 17 17 17 40 Greatest Support 60 | 26 20 20 60 60 60 Greatest Overweight (x) . | . . . . . . Average Overweight (x) . | . . . . . . Largest Inventory Capacity 10 | 8 8 8 8 8 10 Average Capacity 8 | 7 8 8 8 8 8 Most Carried 8 | 6 8 8 8 7 8 Average Carried 7 | 2 7 7 7 7 7 Final Capacity 10 | 8 8 8 8 8 10 Final Carried 8 | 3 7 8 7 7 7 Class Distribution -------------------- 90% | Mutant 9% | Gunner Dominant Class ---------------- Mutant | -10/Materials Mutant | -10/Mines Mutant | -10/Exiles Mutant | -9/Mines Mutant | -8/Materials Resources | -11 -10 -10 -10 -9 -8 ----------- Run | Scr Mat Min Exi Min Mat Matter Collected 709 | 356 70 10 . . 273 Remotely . | . . . . . . Salvage Created 2273 | 166 548 125 . . 1434 Parts 114 | 14 33 14 . . 53 Haulers Intercepted 5 | . 2 . . . 3 Recyclers Shooed . | . . . . . . Parts Field Recycled . | . . . . . . Retrieved Matter . | . . . . . . Parts Self-Destructed . | . . . . . . Prevented . | . . . . . . Kills | -11 -10 -10 -10 -9 -8 ------- Run | Scr Mat Min Exi Min Mat Combat Hostiles Destroyed 41 | . 11 5 . . 25 Melee 2 | . . 2 . . . Guns 18 | . . . . . 18 Cannons 18 | . 11 3 . . 4 AOE 3 | . . . . . 3 Classes Destroyed 10 | 3 5 . . . 2 Worker 1 | 1 . . . . . Tunneler 4 | 3 . 1 . . . Hauler 5 | . 2 . . . 3 Recycler 2 | 1 1 . . . . Operator 2 | . 1 . . . 1 Watcher 5 | . 3 . . . 2 Swarmer 12 | . 6 3 . . 3 Grunt 23 | . 5 2 . . 16 Sentry 5 | . . . . . 5 Hunter 1 | . . . . . 1 Best Kill Streak 7 | 2 6 3 . . 7 Combat Bots Only 7 | . 3 3 . . 7 Max Kills in Single Turn 1 | 1 1 1 . . 1 Gunslinging . | . . . . . . Exploded 1 | . . . . . 1 Melee 1 | . . 1 . . . Uniques/NPCs Destroyed . | . . . . . . Combat | -11 -10 -10 -10 -9 -8 -------- Run | Scr Mat Min Exi Min Mat Damage Taken 3017 | . 268 76 . . 2673 Core 665 | . 74 35 . . 556 Absorbed by Shields . | . . . . . . Regen/Repaired (Parts) 276 | . 55 . . . 221 Core Remaining (%) 78 | 100 . . . 56 . Volleys Fired 176 | 12 60 12 . . 92 Largest 3 | 1 1 1 . . 3 Hottest 190 | 20 68 68 . . 190 Shots Fired 248 | 12 60 12 . . 164 Gun 138 | 12 . . . . 126 Cannon 108 | . 60 12 . . 36 Launcher 2 | . . . . . 2 Special . | . . . . . . Kinetic 12 | 12 . . . . . Thermal 234 | . 60 12 . . 162 Explosive 2 | . . . . . 2 Electromagnetic . | . . . . . . Robot Hit Streak 25 | 4 5 5 . . 25 Robot Miss Streak 4 | 2 4 2 . . 2 Penetration Max . | . . . . . . Secondary Targets . | . . . . . . Shots Hit Robots 176 | 8 32 10 . . 126 Core Hits 82 | 6 18 5 . . 53 Critical Kills 2 | . 1 1 . . . Critical Parts Destroyed . | . . . . . . Critical Strikes 12 | . 1 1 . . 10 Burn 9 | . . . . . 9 Meltdown 2 | . 1 1 . . . Impale 1 | . . . . . 1 Melee Attacks 6 | . . 4 . . 2 Impact . | . . . . . . Slashing . | . . . . . . Piercing 6 | . . 4 . . 2 Sneak Attacks 1 | . . . . . 1 Combat Hostiles . | . . . . . . Follow-up Attacks . | . . . . . . Damage Inflicted 3848 | 103 692 239 . . 2814 Guns 2055 | 103 . . . . 1952 Cannons 1402 | . 692 176 . . 534 Explosions 216 | . . . . . 216 Melee 165 | . . 63 . . 102 Ramming 10 | . . . . . 10 Kinetic 103 | 103 . . . . . Thermal 3354 | . 692 176 . . 2486 Explosive 175 | . . . . . 175 Electromagnetic 41 | . . . . . 41 Impact . | . . . . . . Slashing . | . . . . . . Piercing 165 | . . 63 . . 102 Highest Corruption 3 | . . . . . 3 Average Corruption 1 | . . . . . 1 Corruption Purged . | . . . . . . Corruption Blocked . | . . . . . . Effects 15 | . . . . . 15 Message Errors 4 | . . . . . 4 Matter Fused 2 | . . . . . 2 Heat Flow Errors 1 | . . . . . 1 Energy Discharges 2 | . . . . . 2 Data Loss (minor) 1 | . . . . . 1 Data Loss (major) 3 | . . . . . 3 Misfires 1 | . . . . . 1 Alerts 1 | . . . . . 1 Overload Shots . | . . . . . . Overflow Damage 3 | . 3 . . . . Projectiles 3 | . 3 . . . . Explosions . | . . . . . . Melee . | . . . . . . Knockbacks . | . . . . . . Impact . | . . . . . . Kinetic . | . . . . . . Secondary . | . . . . . . Self-Inflicted Damage 18 | . . . . . 18 Shots 2 | . . . . . 2 Rammed . | . . . . . . Targets Rammed 1 | . . . . . 1 Kicked 1 | . . . . . 1 Crushed . | . . . . . . Highest Temperature 439 | . 160 188 . . 439 Average Temperature 83 | . 51 68 . . 105 Received Heat Transfer 1443 | . 42 24 . . 1377 Effects 12 | . . . . . 12 Interference 12 | . . . . . 12 Siege Activations . | . . . . . . Robots Corrupted . | . . . . . . Combat Hostiles . | . . . . . . Parts Fried . | . . . . . . Impact Corruptions . | . . . . . . Robots Melted 2 | . 1 1 . . . Combat Hostiles . | . . . . . . Parts Melted 18 | . 1 3 . . 14 Heat Transferred 6734 | . 1221 296 . . 5217 Parts Sabotaged . | . . . . . . Parts Stolen . | . . . . . . Parts Stripped . | . . . . . . Power Chain Reactions . | . . . . . . Missiles Intercepted . | . . . . . . Alert | -11 -10 -10 -10 -9 -8 ------- Run | Scr Mat Min Exi Min Mat Peak Influence 457 | 25 335 139 . . 457 Initial 64 | . 16 64 . . . Average 189 | 6 165 87 . . 271 Maximum Alert Level 2 | . 1 . . . 2 Low Security (%) 63 | 100 74 100 . 100 38 Level 1 28 | . 25 . . . 45 Level 2 7 | . . . . . 16 Level 3 . | . . . . . . Level 4 . | . . . . . . Level 5 . | . . . . . . High Security . | . . . . . . Max Security . | . . . . . . Squads Dispatched 13 | . 2 1 . . 10 Investigation 9 | . 1 1 . . 7 Extermination . | . . . . . . Reinforcement 2 | . 1 . . . 1 Assault . | . . . . . . Garrison 2 | . . . . . 2 Intercept . | . . . . . . Searches Triggered . | . . . . . . Construction Impeded . | . . . . . . Haulers Reinforced . | . . . . . . Active Scanning Responses . | . . . . . . Cargo Convoy Interrupts . | . . . . . . Stealth | -11 -10 -10 -10 -9 -8 --------- Run | Scr Mat Min Exi Min Mat Distress Signals 4 | . 2 . . . 2 Communications Jammed . | . . . . . . Distress Signals . | . . . . . . Times Spotted 72 | . 25 5 . . 42 Peak Tracking Total 11 | . 5 3 . . 11 Tactical Retreats 5 | . 3 . . . 2 Traps | -11 -10 -10 -10 -9 -8 ------- Run | Scr Mat Min Exi Min Mat Traps Triggered 4 | . 1 . . . 3 Indirectly . | . . . . . . Trap Hack Attempts . | . . . . . . Triggered . | . . . . . . Disarmed . | . . . . . . Reprogrammed . | . . . . . . Reused . | . . . . . . Traps Extracted . | . . . . . . Installed . | . . . . . . Triggered . | . . . . . . Machines | -11 -10 -10 -10 -9 -8 ---------- Run | Scr Mat Min Exi Min Mat Machines Disabled 6 | . 2 . . . 4 Max in Single Turn 2 | . 1 . . . 2 Machines Sabotaged . | . . . . . . Garrisons Compromised . | . . . . . . Overloaded Fab Kills . | . . . . . . Hacking | -11 -10 -10 -10 -9 -8 --------- Run | Scr Mat Min Exi Min Mat Machines Accessed 22 | . 10 1 . . 11 Terminals 15 | . 7 1 . . 7 Fabricators . | . . . . . . Repair Stations 3 | . 1 . . . 2 Recycling Units 3 | . 2 . . . 1 Scanalyzers . | . . . . . . Garrison Access 1 | . . . . . 1 Total Hacks 86 | . 39 5 . . 42 Successful 53 | . 22 5 . . 26 Failed 32 | . 16 . . . 16 Catastrophic 3 | . 1 . . . 2 Database Lockouts 1 | . 1 . . . . Manual 81 | . 40 7 1 . 33 Terminals 61 | . 28 5 . . 28 Fabricators . | . . . . . . Repair Stations 10 | . 4 . . . 6 Recycling Units 12 | . 7 . . . 5 Scanalyzers . | . . . . . . Garrison Access 3 | . . . . . 3 Terminal Hacks 14 | . 3 5 . . 6 Robot Analysis 3 | . 1 2 . . . Prototype ID Bank 1 | . . 1 . . . Branch Access Points 3 | . 1 1 . . 1 Terminal Index 1 | . 1 . . . . Fabricator Index 1 | . . . . . 1 Recycling Unit Index 1 | . . . . . 1 Scanalyzer Index 1 | . . . . . 1 Garrison Index 1 | . . . . . 1 Recall Investigation 1 | . . . . . 1 Zone Layout 1 | . . 1 . . . Fabricator Hacks . | . . . . . . Repair Station Hacks 10 | . 4 . . . 6 Scan Component 5 | . 2 . . . 3 Repair 5 | . 2 . . . 3 Recycling Unit Hacks 2 | . 1 . . . 1 Report Inventory 2 | . 1 . . . 1 Scanalyzer . | . . . . . . Garrison Access Hacks 1 | . . . . . 1 Unlock Access 1 | . . . . . 1 Unauthorized Hacks 26 | . 14 . . . 12 Terminals 16 | . 9 . . . 7 Track 3 | . 2 . . . 1 Botnet 11 | . 5 . . . 6 Disrupt 1 | . 1 . . . . Operators 1 | . 1 . . . . Fabricators . | . . . . . . Repair Stations . | . . . . . . Recycling Units 8 | . 5 . . . 3 Monitor 2 | . 1 . . . 1 Reject 3 | . 2 . . . 1 Recyclers 2 | . 1 . . . 1 Mask 1 | . 1 . . . . Scanalyzers . | . . . . . . Garrison Access 2 | . . . . . 2 Broadcast 1 | . . . . . 1 Decoy 1 | . . . . . 1 Data Cores Recovered . | . . . . . . Used . | . . . . . . Hacking Detections 20 | . 9 1 . . 10 Full Trace Events 15 | . 6 1 . . 8 Feedback Events 2 | . . . . . 2 Corruption 2 | . . . . . 2 Feedback Blocked . | . . . . . . Robot Schematics Acquired . | . . . . . . Robots Built . | . . . . . . Authchips . | . . . . . . Time . | . . . . . . Total Robot Build Rating . | . . . . . . Part Schematics Acquired . | . . . . . . Parts Built . | . . . . . . Authchips . | . . . . . . Time . | . . . . . . Total Part Build Rating . | . . . . . . Parts Repaired 5 | . 2 . . . 3 Time 232 | . 52 . . . 180 Parts Recycled . | . . . . . . Recycled Matter . | . . . . . . Retrieved Matter . | . . . . . . Retrieved Components . | . . . . . . Parts Scanalyzed . | . . . . . . Part Schematics Acquired . | . . . . . . Parts Damaged . | . . . . . . Bothacking | -11 -10 -10 -10 -9 -8 ------------ Run | Scr Mat Min Exi Min Mat Used RIF Installer . | . . . . . . Robots Hacked . | . . . . . . Non-combat . | . . . . . . Combat . | . . . . . . Robot Hacks Applied . | . . . . . . Relay Couplers Released . | . . . . . . Fabnet Peak Effective % . | . . . . . . Robots Rewired . | . . . . . . Allies Hacked . | . . . . . . Hacks Repelled . | . . . . . . Allies | -11 -10 -10 -10 -9 -8 -------- Run | Scr Mat Min Exi Min Mat Total Allies 3 | . . . . 3 . Largest Group 3 | . . . . 3 3 Highest-Rated Group 40 | . . . . 40 40 Highest-Rated Ally 16 | . . . . 16 16 Total Orders . | . . . . . . Ally Attacks 13 | . . . . . 13 Total Damage 113 | . . . . . 113 Kills 2 | . . . . . 2 Allies Corrupted . | . . . . . . Allies Melted . | . . . . . . Intel | -11 -10 -10 -10 -9 -8 ------- Run | Scr Mat Min Exi Min Mat Robot Analysis Total 3 | . 1 2 . . . Derelict Logs Recovered 1 | . . 1 . . . Drone Launches . | . . . . . . Drone Recoveries . | . . . . . . Exploration | -11 -10 -10 -10 -9 -8 ------------- Run | Scr Mat Min Exi Min Mat Turns Passed 3297 | 123 1029 476 265 68 1336 Spaces Moved 2532 | 81 820 533 299 62 737 Core 17 | 17 . . . . . Treads . | . . . . . . Legs 975 | . . . 176 62 737 Wheels 1540 | 64 820 533 123 . . Hover . | . . . . . . Flight . | . . . . . . Fastest Speed 50 | 50 80 80 80 90 90 Average Speed 83 | 79 80 80 85 90 90 Slowest Speed 90 | 90 80 80 90 90 90 Overloaded Moves . | . . . . . . Propulsion Burnouts . | . . . . . . Robots Hopped . | . . . . . . Cave-ins Triggered . | . . . . . . Exploration Rate (%) 52 | 5 83 89 75 15 50 Regions Visited 5 Branch Regions 3 Pre-discovered Areas . | . . . . . . Known Exits Taken 1 | . 1 . . . . Unknown Exits Taken 4 | 1 . 1 1 1 . Scrap Searched 1 | . . 1 . . . Spaces Dug . | . . . . . . Terrain Destroyed 9 | . . . . . 9 Melee . | . . . . . . Projectile . | . . . . . . AOE 9 | . . . . . 9 Terrain Rammed . | . . . . . . Walls Destroyed . | . . . . . . Machines Disabled . | . . . . . . Actions | -11 -10 -10 -10 -9 -8 --------- Run | Scr Mat Min Exi Min Mat Total 3468 | 127 1134 566 309 74 1258 Wait 636 | 6 231 15 . 13 371 Move 2527 | 80 819 532 298 61 737 Hop . | . . . . . . Pick Up 49 | 13 11 1 4 . 20 Fast Attach 3 | 1 . 1 . . 1 Attach 25 | 7 3 . 2 . 13 Detach 2 | . . . . . 2 Swap 17 | 4 4 . . . 9 Drop 26 | 4 6 1 5 . 10 Fire 176 | 12 60 12 . . 92 Melee 6 | . . 4 . . 2 Ram . | . . . . . . Kick 1 | . . . . . 1 Crush . | . . . . . . Escape Stasis . | . . . . . . Rewire . | . . . . . . Trap . | . . . . . . Miscellaneous . | . . . . . . Route ------- -11/Scrapyard -10/Materials (discovered 4 exits: [*Mat x2] / *Min x2) -10/Mines (discovered 3 exits: [*Mat x2] / *Exi) -10/Exiles (discovered 2 exits: [*Min x2]) -9/Mines -8/Materials (discovered 2 exits: [*Fac] / Gar) History --------- Turn | Location | Event 20 | -11/Scrapyard | Discovered new exit (range 15) 124 | -11/Scrapyard | Entered Materials 305 | -10/Materials | Build established: Mutant 370 | -10/Materials | Discovered new exit (range 5) 622 | -10/Materials | Discovered new exit (range 15) 771 | -10/Materials | Discovered new exit (range 14) 828 | -10/Materials | Repaired Wheel 870 | -10/Materials | Repaired Wheel 915 | -10/Materials | Identified exit to Mines 915 | -10/Materials | Central database locked down 1153 | -10/Materials | Entered Mines 1199 | -10/Mines | A weapon hastily lodged in a ceiling crevice suddenly fell to the ground 1237 | -10/Mines | Found a damaged Exp. Sensor Array with a note attached 1252 | -10/Mines | Learned Materials terminal intel 1256 | -10/Mines | YI-UF0 nonchalantly dropped a Grenade Launcher on the ground 1335 | -10/Mines | Discovered new exit (range 7) 1596 | -10/Mines | Discovered new exit (range 7) 1604 | -10/Mines | Discovered new exit (range 6) 1626 | -10/Mines | Deemed a non-threat by the Exiles lab entrance 1629 | -10/Mines | Entered Exiles 1642 | -10/Exiles | Discovered new exit (range 15) 1651 | -10/Exiles | Met 8R-AWN 1665 | -10/Exiles | Met EX-HEX 1691 | -10/Exiles | Met EX-BIN 1702 | -10/Exiles | Aligned with FarCom system 1703 | -10/Exiles | Given EX-Vault access code 1722 | -10/Exiles | Opened EX-Vault 1728 | -10/Exiles | Found Prototype Leg 1730 | -10/Exiles | Found Prototype Leg 1732 | -10/Exiles | Identified Potential Leg (x2) 1756 | -10/Exiles | Warned to stay clear of 0b10 Research branches 1785 | -10/Exiles | Met EX-DEC 1816 | -10/Exiles | Visited The Gauntlet 1885 | -10/Exiles | Discovered new exit (range 10) 1894 | -10/Exiles | Left Exiles lab with Potential Leg 1894 | -10/Exiles | Entered Mines 1951 | -9/Mines | Discovered new exit (range 6) 1959 | -9/Mines | Assisted by bots powering up and referring to "LRC-V3" 1962 | -9/Mines | Entered Materials 1962 | -8/Materials | Accompanied by 3 allies 1962 | -8/Materials | Evolved 4 slots: Power x1, Utility x2, Weapon x1 1963 | -8/Materials | Loaded intel: 12 terminal locations 2581 | -8/Materials | Discovered new exit (range 14) 2584 | -8/Materials | Destroyed 7 combat bots 2731 | -8/Materials | Repaired Adv. Beam Rifle 2792 | -8/Materials | Repaired Adv. Beam Rifle 3110 | -8/Materials | Garrison activated, responded to threat 3170 | -8/Materials | Identified exit to Garrison 3250 | -8/Materials | Repaired Faulty Hvy. Particle Gun? 3278 | -8/Materials | Core integrity fell below 50% 3294 | -8/Materials | Core integrity fell below 20% 3298 | -8/Materials | Destroyed by Y-45 Defender with Beam Rifle Last Messages --------------- 03247_ ALERT: Suspicious activity at Terminal M003. Dispatching Investigation squad. 03250_ >> REPAIR: Completed Faulty Hvy. Particle Gun? 03253_ Hadron Collector disabled. 03257_ G-47 Trooper suffers critical hit (Burn). 03261_ Particle Cannon destroyed. 03265_ U-05 Engineer lays Concrete. 03265_ Kicked Y-45 Defender. 03270_ U-05 Engineer lays Concrete. 03271_ Critical hit (Burn: +37). 03271_ Adv. Beam Rifle destroyed. 03272_ U-05 Engineer lays Concrete. 03273_ Imp. Targeting Computer destroyed. 03275_ Critical hit (Burn: +37). 03279_ Potential Leg destroyed. 03283_ Critical hit (Burn: +37). 03283_ Imp. Deuterium Engine destroyed. 03286_ Critical hit (Burn: +37). 03289_ Imp. Deuterium Engine destroyed. 03295_ Critical hit (Burn: +37). Map ----- +----------------------------------------------------+ | ????????########## ## ####+####????????######### | | ????????# ### [ # #????????????????? | | ????????# """ ### # """ #????????????????? | | ????????# """ / + >G" #????????????????? | | ????????# """ ### # """ #????????????????? | | ????????# #?# [ # #????????????????? | | ? + """ #?### ### #????????????????? | | ? # """ #???# #?########????????????????? | | ???? ???# """ #???# #?????????????????????????? | | ? ?????#! #???# #?????????????????????????? | | ?"" ???####+#####???# #?????????????????????????? | | ?"" ????# #???????# #?????????????????????????? | | """ #### #???????# #?????????????????????????? | | #???????# #?????????????????????????? | | ###????## ##????????????????????????? | | """ ######= #????????????????????????? | | """ Y % #????????????????????????? | | ?"" ##+###r #????????????????????????? | | ! ## ###+####??????????????????????? | | ##= # #??????????????????????? | | ############# ## # """g #??????????????????????? | | ????????????# ## # """ #??????????????????????? | | ????????????#Y## ! # "" g #??????????????????????? | | ????????????# ## # gg #??????????????????????? | | ????????????? ## # "T"gg#??????????????????????? | | ????????????? ###########@#??????????????????????? | | ????????????? #?????????#Y#??????????????????????? | | ????????????? ??????????# #??????????????????????? | | ????????????? ??????????#+#??????????????????????? | | ????????????? ?????????? ??????????????????????? | | ?????????????!?????????? ""??????????????????????? | | ???????????????g???????? "Y???????g??????????????? | | ???????????????????????? ??????g???????????????? | | ???????????????????????? ?????g???g????????????? | | ???????????????????????? ??????????????????????? | | ??????????????????????? ?????????????????????? | | ??????????????????????? ??????????????????????? | | ???????????????????????##????????????????????????? | | ?????????????????????????????????????????????????? | | ?????????????????????????????????????????????????? | | ?????????????????????????????????????????????????? | | ?????????????????????????????????????????????????? | | ?????????????????????????????????????????????????? | | ?????????????????????????????????????????????????? | | | | | | | | | | | | | +----------------------------------------------------+ Best States ------------- Heat Dissipation 45 Energy Generation 27 Energy Capacity 480 Matter Stores 300 Matter Capacity 300 Sight Range 16 Terrain Scan Density 10 Evasion (%) 57 Targeting Accuracy 12 Item Schematics ----------------- None Robot Schematics ------------------ None Fabricated ------------ Nothing Alien Tech Used ----------------- None Achievements -------------- None Challenges ------------ None Game ------ Seed GravitonDeliveryFirepult Manual? 0 Play Time 00:55:40 Cumulative 22.4 hours Start 2022.10.15 @ 17:00:07 End 2022.10.15 @ 17:57:44 Sessions 1 Manual Loads 0 Difficulty Rogue Special Mode None Game No. 43 Rogue 43 Adventurer 0 Explorer 0 Win Type - Total 0 Types 0/0/0/0/0/0/0/0/0 Lore% 18 Gallery% 20 Achievement% 22 Wizard Run 0 Options --------- ASCII 0 Keyboard 0 Movement Numpad Keybinds 0 Fullscreen 2 Font 18/TerminusBold Map View 76x50 Tactical HUD 1 Map Filters NONE Filters NONE Steam 1 RUN: d18298f5-9e45-4a01-82cd-1af32a8e122f